[Event "37th ECCC 2022"]
[Site "Mayrhofen"]
[Date "2022.10.03"]
[Round "1.1"]
[White "Hjartarson, Johann"]
[Black "Anand, Viswanathan"]
[Result "1/2-1/2"]
[ECO "A35"]
[WhiteElo "2468"]
[BlackElo "2756"]
[Annotator "TA"]
[PlyCount "60"]
[EventDate "2022.10.03"]
[EventType "team-tourn"]
[EventCountry "AUT"]
[SourceTitle "playchess.com"]
[Source "ChessBase"]
[SourceQuality "1"]
[TimeControl "40/5400+30:1800+30"]

{[%evp 17,60,13,9,0,0,0,-8,-21,-17,-23,-17,-45,-10,-29,-33,-25,-13,0,-4,0,0,0,0,0,0,-3,0,0,0,0,0,0,0,0,0,0,0,0,0,0,0,0,0,0,0]} 1. c4 {[%emt 0:00:11]} c5 {[%emt 0:00:29]} 2. Nf3 {[%emt 0:00:35]} Nf6 {[%emt 0:00:13]} 3. Nc3 {[%emt 0:00:12]} Nc6 {[%emt 0:00:11]} 4. e3 {[%emt 0:00:15]} e6 {[%emt 0:00:56]} 5. d4 {[%emt 0:00:13]} d5 {[%emt 0:00:17]} 6. a3 {[%emt 0:00:11]} a6 {[%emt 0:04:03]} 7. dxc5 {[%emt 0:00:35]} Bxc5 {[%emt 0:00:08]} 8. b4 {[%emt 0:00:09]} Bd6 {[%emt 0:01:10]} 9. Bb2 {[%emt 0:01:42]} O-O {[%emt 0:00:27]} 10. Be2 {[%emt 0:01:14][%cal Rc4d5] D40: Queen's Gambit Declined: Semi-Tarrasch with 5 e3.} dxc4 {[%emt 0:05:35]} 11. Bxc4 {[%emt 0:02:46]} b5 {[%emt 0:07:30]} 12. Be2 {[%emt 0:06:27]} Bb7 {[%emt 0:00:40]} 13. O-O {[%emt 0:00:49]} Qe7 {[%emt 0:08:46]} 14. Qb3 {[%emt 0:03:45]} Rac8 {[%emt 0:05:39]} 15. Rfd1 {[%emt 0:01:18]} Rfd8 {[%emt 0:07:04] [#]} 16. h3 $146 {[%emt 0:03:56]} ({Predecessor:} 16. a4 Nxb4 17. axb5 axb5 18. Ba3 Nc2 19. Bxd6 Rxd6 20. Rac1 Rxd1+ 21. Nxd1 Qa3 22. Qb1 Be4 23. Nd4 Qa5 24. f3 Bg6 25. Qxb5 {½-½ (26) Verbesek,W-Grott,P GER email 2008}) 16... h6 {[%emt 0:00:58]} 17. a4 {[%emt 0:08:59] The position is equal.} bxa4 {[%emt 0:06:44]} 18. Rxa4 {[%emt 0:00:21]} Bxb4 {[%emt 0:09:44]} 19. Rxd8+ {[%emt 0:01:19]} Rxd8 {[%emt 0:03:10]} 20. Bxa6 {[%emt 0:00:24]} Bxa6 {[%emt 0:06:39]} 21. Rxa6 {[%emt 0:00:11]} Rc8 {[%emt 0:00:15]} 22. Ba3 {[%emt 0:16:43]} Bxa3 {[%emt 0:00:40]} 23. Qxa3 {[%emt 0:00:12]} Qd8 {[%emt 0:03:19]} 24. Qb2 {[%emt 0:06:07]} Rb8 {[%emt 0:01:06]} 25. Qd2 {[%emt 0:02:57]} Qxd2 {[%emt 0:03:11]} 26. Nxd2 {[%emt 0:00:07]} Ne5 {[%emt 0:00:06]} 27. Ra2 {[%emt 0:09:09]} Rc8 {[%emt 0:00:32]} 28. Nde4 {[%emt 0:02:16]} Ned7 {[%emt 0:00:09]} 29. Nxf6+ {[%emt 0:00:47]} Nxf6 {[%emt 0:00:06]} 30. Ne2 {[%emt 0:00:07]} Nd5 {[%emt 0:00:13] An even fight not without its subleties.  Weighted Error Value: White=0.04 (flawless) /Black=0.03 (flawless)} 1/2-1/2

[Event "37th ECCC 2022"]
[Site "Mayrhofen"]
[Date "2022.10.03"]
[Round "1.2"]
[White "Deac, Bogdan-Daniel"]
[Black "Thorfinnsson, Bragi"]
[Result "1-0"]
[ECO "D00"]
[WhiteElo "2707"]
[BlackElo "2421"]
[Annotator "TA"]
[PlyCount "65"]
[EventDate "2022.10.03"]
[EventType "team-tourn"]
[EventCountry "AUT"]
[SourceTitle "playchess.com"]
[Source "ChessBase"]
[SourceQuality "1"]
[TimeControl "40/5400+30:1800+30"]

{[%evp 21,65,25,23,0,27,27,26,13,55,43,47,39,47,35,56,47,74,68,115,103,102,85,99,87,94,89,93,70,101,108,170,177,146,112,122,116,227,250,311,327,222,239,937,921,892,830]} 1. d4 {[%emt 0:00:10]} d5 {[%emt 0:00:46]} 2. Bf4 {[%emt 0:01:02]} Nf6 {[%emt 0:00:11]} 3. e3 {[%emt 0:00:21]} c5 {[%emt 0:07:34]} 4. c3 {[%emt 0:00:47]} Nc6 {[%emt 0:01:14]} 5. Nd2 {[%emt 0:00:29]} cxd4 {[%emt 0:07:24]} 6. exd4 {[%emt 0:01:28]} Bg4 {[%emt 0:00:43]} 7. Qb3 {[%emt 0:03:15]} Qc8 {[%emt 0:04:04]} 8. Ngf3 {[%emt 0:00:31]} e6 {[%emt 0:02:51]} 9. Bd3 {[%emt 0:05:24]} Be7 {[%emt 0:04:24]} 10. O-O {[%emt 0:00:42]} O-O {[%emt 0:00:28]} 11. Rae1 {[%emt 0:00:08]} Bh5 {[%emt 0:06:56]} 12. h4 $5 {[%emt 0:00:57][%mdl 4] [#] Exploring less charted territory. B13: Caro-Kann: Exchange Variation and Panov-Botvinnik Attack.} Bg6 $146 {[%emt 0:07:11]} ({Predecessor:} 12... h6 13. Qc2 Qd8 14. g3 Rc8 15. Qb1 a6 16. Kg2 b5 17. b4 Bd6 18. Bxd6 Bxf3+ 19. Nxf3 Qxd6 {1-0 (50) Abdusattorov,N (2627)-Kovalenko,I (2643) Chess.com INT 2021}) 13. Bxg6 {[%emt 0:02:27]} hxg6 {[%emt 0:00:05]} 14. g3 {[%emt 0:00:59] White has an edge.} Bd8 {[%emt 0:06:50]} 15. Ne5 {[%emt 0:12:13]} a5 {[%emt 0:07:42]} 16. Qb5 {[%emt 0:30:46]} a4 {[%emt 0:02:40]} 17. a3 {[%emt 0:01:28]} Ra6 {[%emt 0:01:04]} 18. Qe2 {[%emt 0:01:04]} Rb6 {[%emt 0:03:32]} 19. Nd3 {[%emt 0:05:07] White is more active.} Ne7 {[%emt 0:04:54]} (19... Na5 $14 {was preferrable.}) 20. Nf3 {[%emt 0:02:22]} Bc7 {[%emt 0:06:03][%cal Bd8c7,Bc7d6,Bd6e7][%mdl 32]} 21. Nfe5 {[%emt 0:08:44]} Bd6 {[%emt 0:04:21]} 22. Bg5 {[%emt 0:06:02]} Ne4 {[%emt 0:02:41]} 23. Bxe7 {[%emt 0:01:25]} Bxe7 {[%emt 0:00:08]} 24. h5 {[%emt 0:01:38][%cal Bh4h5,Bh5h6,Bh6h7][%mdl 32]} g5 {[%emt 0:02:31]} 25. Kg2 {[%emt 0:03:17]} Re8 {[%emt 0:08:04]} (25... Qc7 $16) 26. h6 {[%emt 0:04:22]} g6 {[%emt 0:02:09]} 27. Rh1 {[%emt 0:01:07] [#] Hoping for Qf3.} ({Much less strong is} 27. Qf3 $6 Rf8 $14) 27... Rf8 {[%emt 0:03:20]} 28. h7+ {[%emt 0:05:12]} Kg7 {[%emt 0:00:15]} (28... Kh8 $16 {was necessary.} 29. f3 Nd6) 29. f3 $40 {[%emt 0:00:18][%mdl 128] White is out for blood. Dancing on a razor blade.} Nd6 {[%emt 0:01:45] [#]} 30. Nc5 $1 {[%emt 0:00:39]} Rh8 {[%emt 0:02:56]} 31. Ned7 {[%emt 0:00:25] Pair of Knights!} Qd8 $2 {[%emt 0:00:32]} (31... Nc4 32. Nxb6 Nxb6) 32. Nxb6 {[%emt 0:00:26]} Qxb6 {[%emt 0:00:07]} 33. Qe5+ {[%emt 0:00:04] Weighted Error Value: White=0.08 (flawless) /Black=0.26 (precise)} 1-0

[Event "37th ECCC 2022"]
[Site "Mayrhofen"]
[Date "2022.10.03"]
[Round "1.3"]
[White "Thorfinnsson, Bjorn"]
[Black "Gukesh D"]
[Result "0-1"]
[ECO "A48"]
[WhiteElo "2365"]
[BlackElo "2732"]
[Annotator "TA"]
[PlyCount "98"]
[EventDate "2022.10.03"]
[EventType "team-tourn"]
[EventCountry "AUT"]
[SourceTitle "playchess.com"]
[Source "ChessBase"]
[SourceQuality "1"]
[TimeControl "40/5400+30:1800+30"]

{[%evp 9,98,0,13,0,12,0,4,6,9,0,16,-27,-27,-45,-35,-29,-27,-69,-58,-73,-72,-72,-71,-89,-87,-85,-90,-93,-93,-137,-57,-60,-56,-66,-64,-57,-58,-60,-52,-87,-79,-105,-47,-45,0,-10,0,-74,-70,-73,0,-28,-37,-34,-23,-32,-21,-33,-22,-48,-51,-94,-77,-95,-100,-69,-82,-258,-258,-274,-285,-254,-249,-725,-665,-737,-740,-675,-712,-650,-691,-683,-675,-579,-581,-587,-458,-1062,-1045,-898,-820]} 1. d4 {[%emt 0:00:03]} Nf6 {[%emt 0:00:50]} 2. Nf3 {[%emt 0:00:10]} g6 {[%emt 0:02:24]} 3. Bg5 {[%emt 0:00:20]} Bg7 {[%emt 0:00:09]} 4. e3 {[%emt 0:00:16]} h6 {[%emt 0:00:11]} 5. Bh4 {[%emt 0:00:07]} O-O {[%emt 0:00:14][%cal Oc7c5]} 6. Bd3 {[%emt 0:00:54] A48: 1 d4 Nf6 2 Nf3 g6: Torre, London and Colle Systems.} d6 {[%emt 0:01:10]} 7. Nbd2 {[%emt 0:00:43]} Qe8 {[%emt 0:00:33]} 8. c3 {[%emt 0:03:03] The position is equal.} e5 {[%emt 0:00:19]} 9. Qc2 {[%emt 0:01:51]} Nc6 {[%emt 0:12:46]} 10. O-O {[%emt 0:02:51]} Nh5 {[%emt 0:00:34]} 11. dxe5 {[%emt 0:05:32]} dxe5 {[%emt 0:00:40]} 12. e4 {[%emt 0:00:06]} Nf4 {[%emt 0:02:07]} 13. Bc4 {[%emt 0:00:57]} Na5 $1 {[%emt 0:02:00] [#]} 14. Rfd1 $146 {[%emt 0:04:31]} ({Predecessor:} 14. Bg3 b5 15. Bxf4 Nxc4 16. Bg3 Nb6 17. Rfe1 Kh7 18. c4 bxc4 19. Nxc4 f6 20. Nfd2 {0-1 (51) Gausel,E (2460)-Fedorowicz,J (2565) Stockholm 1990}) 14... Nxc4 {[%emt 0:01:33]} 15. Nxc4 {[%emt 0:00:05]} Bg4 {[%emt 0:02:41]} 16. Ne3 {[%emt 0:04:54]} Bxf3 {[%emt 0:09:14]} 17. gxf3 {[%emt 0:00:07]} Qe6 {[%emt 0:00:32]} 18. Bg3 {[%emt 0:01:22]} Qh3 {[%emt 0:03:27]} 19. Qd2 {[%emt 0:01:31]} h5 {[%emt 0:16:13] Black is much more active.} (19... Rae8 $17 20. a3 h5 21. Bxf4 exf4) 20. Bxf4 $15 {[%emt 0:05:45]} exf4 {[%emt 0:00:07]} 21. Ng2 {[%emt 0:00:09]} Be5 {[%emt 0:05:14]} 22. Ne1 {[%emt 0:03:33]} Rfe8 {[%emt 0:05:30]} 23. Qd7 {[%emt 0:04:11]} Qh4 {[%emt 0:01:53]} 24. Rd3 {[%emt 0:03:01]} Re7 {[%emt 0:06:27]} 25. Qa4 {[%emt 0:01:14]} Bd6 {[%emt 0:02:36]} ({Better is} 25... g5 $17) 26. Rd5 {[%emt 0:00:49]} b6 {[%emt 0:01:19]} 27. Nd3 {[%emt 0:12:07]} Rae8 {[%emt 0:08:06]} 28. Re1 {[%emt 0:01:56]} (28. Qxa7 $2 c6 29. Qxb6 cxd5 30. Qxd6 dxe4 31. Qxf4 Qh3 $19) (28. Kg2 $1 $11) 28... Qh3 $1 $17 {[%emt 0:01:40]} 29. Qd1 {[%emt 0:01:21]} Qe6 {[%emt 0:04:06]} (29... Be5 $17) 30. Qb3 {[%emt 0:01:09]} c6 {[%emt 0:01:16]} 31. Rd4 {[%emt 0:03:35]} Qf6 {[%emt 0:00:13]} 32. a4 {[%emt 0:05:41]} Re6 {[%emt 0:02:11]} 33. Qc4 {[%emt 0:06:01]} Kg7 {[%emt 0:06:31]} 34. b4 {[%emt 0:04:15]} (34. Qxc6 $2 Bc5 35. Qd7 Bxd4 36. Qxd4 Rd8 37. Qxf6+ Rxf6 $19) 34... R8e7 {[%emt 0:00:05]} 35. Rd1 {[%emt 0:01:54]} Qg5+ {[%emt 0:01:24]} 36. Kf1 {[%emt 0:01:19]} Qh4 {[%emt 0:01:15]} 37. Kg2 {[%emt 0:05:27] Inhibits Qh3+.} g5 {[%emt 0:00:28][%cal Bg6g5,Bg5g4][%mdl 32] Hoping for ...g4.} (37... Be5 38. Nxe5 Rxe5 39. Rd8 $11) 38. Ne1 $2 {[%emt 0:04:55] Now White is beyond hope.} (38. Rg1 $17) 38... Be5 $19 {[%emt 0:00:37]} 39. Rd7 {[%emt 0:00:05]} g4 $1 {[%emt 0:00:24]} 40. Rxe7 {[%emt 0:00:49]} ({Don't blunder} 40. Kg1 $2 Rxd7 41. Rxd7 {[#]} g3 $1 42. fxg3 fxg3 $1 43. hxg3 Bxg3 $19) 40... Rxe7 {[%emt 0:00:24] Chess con chili.} ({Worse is} 40... Qxe7 41. Nd3 $17) 41. Rd3 {[%emt 0:34:18]} (41. Kg1) 41... Re6 {[%emt 0:06:26][%cal Be7e6,Be6d6,Bd6d1,Bd1b1][%mdl 32] Threatens to win with ...Qh3+. Black is clearly winning.} ({Weaker is} 41... g3 42. fxg3 fxg3 43. h3 $11) 42. Rd7 {[%emt 0:00:00] Strongly threatening Qxe6.} Qh3+ {[%emt 0:02:18]} 43. Kh1 {[%emt 0:00:00]} g3 {[%emt 0:00:52]} 44. fxg3 {[%emt 0:00:00]} fxg3 {[%emt 0:00:05][%csl Ge5,Gg3][%cal Rh3h2]} 45. Rd2 {[%emt 0:00:00]} Rd6 {[%emt 0:02:20]} 46. Rg2 {[%emt 0:00:00]} Rd1 {[%emt 0:03:48]} 47. Qe2 {[%emt 0:00:00]} Rb1 {[%emt 0:01:51]} 48. Qd2 {[%emt 0:00:00]} (48. Rg1 $142 Bxc3 49. Nc2 Rxg1+ 50. Kxg1) 48... Kh7 {[%emt 0:00:53]} 49. f4 {[%emt 0:00:00] [#]} Bxf4 $1 {[%emt 0:00:35][%mdl 512] Weighted Error Value: White=0.37/Black=0.13 (very precise)} 0-1

[Event "37th ECCC 2022"]
[Site "Mayrhofen"]
[Date "2022.10.03"]
[Round "1.4"]
[White "Nisipeanu, Liviu-Dieter"]
[Black "Kjartansson, David"]
[Result "1-0"]
[ECO "D25"]
[WhiteElo "2615"]
[BlackElo "2316"]
[Annotator "TA"]
[PlyCount "75"]
[EventDate "2022.10.03"]
[EventType "team-tourn"]
[EventCountry "AUT"]
[SourceTitle "playchess.com"]
[Source "ChessBase"]
[SourceQuality "1"]
[TimeControl "40/5400+30:1800+30"]

{[%evp 10,75,30,29,63,53,46,39,96,57,64,70,92,22,17,16,61,43,77,87,72,78,80,73,80,58,141,127,139,175,136,133,278,277,303,300,372,355,361,215,197,210,204,197,203,209,189,192,197,172,414,408,421,387,470,459,1911,1742,29983,29984,29986,29987,29987,29987,29989,29989,29989,29986]} 1. d4 {[%emt 0:00:06]} d5 {[%emt 0:00:27]} 2. c4 {[%emt 0:00:20]} dxc4 {[%emt 0:00:24]} 3. Nf3 {[%emt 0:00:07]} Nf6 {[%emt 0:01:29]} 4. e3 {[%emt 0:00:11]} Bg4 {[%emt 0:03:05]} 5. Bxc4 {[%emt 0:00:41]} e6 {[%emt 0:00:50]} 6. Nc3 {[%emt 0:03:23]} Bd6 {[%emt 0:15:28] D25: Queen's Gambit Accepted: 4 e3: sidelines and 4...Bg4.} 7. h3 $5 {[%emt 0:05:26][%mdl 4] A promising side line.} Bh5 {[%emt 0:01:00]} 8. e4 {[%emt 0:04:40] [#]} Bxf3 $146 {[%emt 0:03:15]} ({Black should play} 8... Bb4 $14) ({Predecessor:} 8... Nfd7 9. O-O e5 10. g4 Bg6 11. Bg5 f6 12. Be3 h5 13. Nh4 Bh7 14. g5 g6 15. Nf5 Bg8 16. Nxd6+ cxd6 17. Bxg8 Rxg8 18. Qb3 Rh8 19. Qxb7 fxg5 20. Nd5 g4 21. Nc7+ Kf7 22. Qd5+ {1-0 (22) Savon,V (2448)-Smirnov,A (2288) Tula 2001}) 9. gxf3 {[%emt 0:07:09] And now e5 would win.} Be7 {[%emt 0:03:22]} 10. Rg1 {[%emt 0:11:31]} g6 {[%emt 0:05:32]} 11. f4 {[%emt 0:06:43] White is more active.} ({White should try} 11. Bh6 $16) 11... Nc6 $11 {[%emt 0:07:57]} 12. Be3 {[%emt 0:04:30]} Qd7 {[%emt 0:04:33]} 13. a3 {[%emt 0:13:39]} Rd8 {[%emt 0:03:00][%cal Rc6d4]} 14. e5 {[%emt 0:04:51]} Nd5 {[%emt 0:04:40] [#]} 15. Nxd5 {[%emt 0:00:12]} exd5 {[%emt 0:00:08]} 16. Be2 {[%emt 0:01:05] Hoping for Bg4.} f5 {[%emt 0:02:58] Against Bg4} 17. Qb3 {[%emt 0:01:45]} O-O {[%emt 0:21:28]} (17... Rb8 $14) 18. Rc1 $16 {[%emt 0:00:20]} (18. Qxb7 Rb8 19. Qa6 Rb6 $15) 18... Rb8 {[%emt 0:01:39]} 19. h4 {[%emt 0:00:43][%cal Bh3h4,Bh4h5][%mdl 32]} Kh8 {[%emt 0:01:38]} 20. h5 {[%emt 0:05:20]} g5 {[%emt 0:04:06] Black cannot hold the game after this.} (20... gxh5 $16 21. Bf3 (21. Bxh5 Na5 $16) 21... Rfd8) 21. fxg5 $18 {[%emt 0:02:49] Black must now prevent g6.} f4 {[%emt 0:00:51] [#]} 22. g6 $1 {[%emt 0:05:46] g7+ is the strong threat.} (22. Bg4 fxe3 23. Bxd7 exf2+ 24. Kf1 (24. Kd2 Nxd4 25. Qe3 Nf3+ 26. Ke2 fxg1=B $14) 24... fxg1=N+ 25. Kxg1 Nxd4 $16) 22... hxg6 {[%emt 0:01:02]} 23. Rxg6 {[%emt 0:00:53]} (23. hxg6 Kg7 $16) 23... Qh3 {[%emt 0:01:05]} 24. Rh6+ {[%emt 0:07:36]} ({Worse is} 24. Qxd5 fxe3 25. Rh6+ Kg7 26. Rg6+ Kh8 27. Rh6+ Kg7 28. Rg6+ Kh8 $11) (24. Qd3 $142 {Intending Rh6+ and mate.} Qf5 25. Bd2) 24... Kg7 {[%emt 0:01:15] [#]} 25. Qd3 {[%emt 0:00:14][%csl Gh5,Gh6][%cal Rd3g6]} Qh1+ {[%emt 0:05:06]} 26. Bf1 {[%emt 0:00:23][%csl Gh5,Gh6][%cal Rd3g6] Chess con chili.} Qe4 {[%emt 0:01:13]} 27. Rg6+ $40 {[%emt 0:00:12][%mdl 128] White is out for blood.} Kh8 {[%emt 0:01:03]} 28. Qxe4 {[%emt 0:01:04]} dxe4 {[%emt 0:00:06]} 29. Bd2 {[%emt 0:00:02] Strongly threatening Bg2.} Nxd4 $2 {[%emt 0:00:34]} (29... Rbd8 {was called for.} 30. Rcxc6 bxc6) 30. Rxc7 {[%emt 0:07:25]} Nf3+ {[%emt 0:02:26]} 31. Ke2 {[%emt 0:01:15]} ({Not} 31. Kd1 Nxd2 32. Kxd2 Rf7 $18) 31... Rbd8 {[%emt 0:01:35][%csl Gf3][%cal Rd8d2]} 32. Bc3 {[%emt 0:00:47]} Nd4+ {[%emt 0:01:20]} (32... Rd3 $142 33. e6+ (33. Rxe7 Rfd8 $11) 33... Rxc3 34. bxc3 Rd8) 33. Bxd4 {[%emt 0:00:21]} Rxd4 {[%emt 0:00:04]} 34. Rxe7 {[%emt 0:01:13] White mates.} Rc8 {[%emt 0:00:08]} 35. Bh3 {[%emt 0:00:45]} Rc2+ {[%emt 0:00:26]} 36. Kf1 {[%emt 0:00:28]} Rd1+ {[%emt 0:01:26]} 37. Kg2 {[%emt 0:00:04]} f3+ {[%emt 0:00:16]} 38. Kg3 {[%emt 0:00:14] Weighted Error Value: White=0.11 (very precise) /Black=0.48} 1-0

[Event "37th ECCC 2022"]
[Site "Mayrhofen"]
[Date "2022.10.03"]
[Round "1.5"]
[White "Thorarinsson, Pall A."]
[Black "Sargissian, Gabriel"]
[Result "0-1"]
[ECO "E12"]
[WhiteElo "2168"]
[BlackElo "2711"]
[Annotator "TA"]
[PlyCount "68"]
[EventDate "2022.10.03"]
[EventType "team-tourn"]
[EventCountry "AUT"]
[SourceTitle "playchess.com"]
[Source "ChessBase"]
[SourceQuality "1"]
[TimeControl "40/5400+30:1800+30"]

{[%evp 17,68,18,13,16,27,29,28,0,0,-5,4,0,15,20,29,0,29,30,27,0,0,0,0,0,0,0,0,-47,-46,-62,-3,-67,-59,-58,-60,-55,-63,-116,-123,-164,-165,-190,-182,-216,-219,-241,-249,-237,-198,-198,-193,-489,-462]} 1. d4 {[%emt 0:00:03]} Nf6 {[%emt 0:00:09]} 2. c4 {[%emt 0:00:09]} e6 {[%emt 0:00:39]} 3. Nf3 {[%emt 0:00:21]} b6 {[%emt 0:06:18]} 4. a3 {[%emt 0:00:51]} Bb7 {[%emt 0:01:57]} 5. Nc3 {[%emt 0:01:31]} Ne4 {[%emt 0:03:44]} 6. Nxe4 {[%emt 0:11:32]} Bxe4 {[%emt 0:00:21]} 7. Nd2 {[%emt 0:02:02]} Bb7 {[%emt 0:07:31]} 8. e4 {[%emt 0:02:28]} g6 $1 {[%emt 0:00:56][%mdl 4] is now more promising than 8...Qf6.} 9. Bd3 {[%emt 0:03:16]} Bg7 {[%emt 0:00:15]} 10. Nf3 {[%emt 0:00:37] E12: Queen's Indian: Unusual White 4th moves, 4 a3, 4 Nc3 Bb7 5 a3 and 4 Nc3 Bb7 .} d6 {[%emt 0:01:59]} 11. O-O {[%emt 0:06:52] was the old line (11.Bg5).} Nd7 {[%emt 0:00:50] [#]} 12. b4 $146 {[%emt 0:06:25] White has an edge.} ({Predecessor:} 12. Bg5 Bf6 13. Be3 O-O 14. Rc1 c5 15. b4 a5 16. bxc5 bxc5 17. d5 exd5 18. exd5 {½-½ (31) Xu,M (2408)-Liu,Y (2530) Fuling 2022}) 12... c5 {[%emt 0:06:53]} 13. Be3 {[%emt 0:08:16]} O-O {[%emt 0:01:25]} 14. Ra2 {[%emt 0:07:32]} Qc7 {[%emt 0:05:23]} 15. d5 {[%emt 0:20:05]} Rfe8 {[%emt 0:11:07]} 16. Re2 {[%emt 0:07:22]} cxb4 {[%emt 0:10:27]} (16... Rab8 {with more complications.} 17. b5 a6 18. a4 axb5 19. axb5 Ra8) 17. axb4 {[%emt 0:00:11]} a5 {[%emt 0:00:07]} 18. bxa5 {[%emt 0:06:55]} Rxa5 {[%emt 0:01:00]} 19. dxe6 {[%emt 0:01:21]} fxe6 {[%emt 0:09:37][%cal Bf7e6,Be6e5][%mdl 32]} 20. Bd4 {[%emt 0:01:55]} Nc5 {[%emt 0:04:59]} 21. Bxg7 {[%emt 0:03:01]} (21. Rb2 {is more complex.} d5 22. exd5 Nxd3 23. Qxd3 exd5 24. Bxb6 Qxc4 25. Qb1) 21... Kxg7 {[%emt 0:02:07]} 22. Bc2 {[%emt 0:04:19]} (22. Nd4 $11) 22... e5 $1 $15 {[%emt 0:00:15]} 23. Rfe1 {[%emt 0:03:20]} Bc8 {[%emt 0:00:15]} ({Black should play} 23... Rea8 $15) 24. Nd2 {[%emt 0:00:34]} (24. Rd2 $11) 24... Bg4 {[%emt 0:01:55] Black has more active pieces.} 25. f3 {[%emt 0:00:17]} Be6 {[%emt 0:00:06][%cal Bg4e6,Be6f7,Bf7c4][%mdl 32]} 26. Re3 {[%emt 0:00:09]} Rea8 {[%emt 0:01:01][%cal Be8a8,Ba8a3,Ba3f3][%mdl 32]} 27. h3 {[%emt 0:00:59]} (27. Kh1 $15) 27... Bf7 $17 {[%emt 0:01:39]} 28. Nb3 {[%emt 0:00:15]} Ra3 {[%emt 0:01:13]} 29. Kh2 {[%emt 0:00:45]} Bxc4 {[%emt 0:01:22]} 30. Nxc5 {[%emt 0:00:59]} Qxc5 {[%emt 0:01:23]} ({Stronger than} 30... bxc5 31. Rxa3 Rxa3 32. Qb1) 31. Rxa3 {[%emt 0:00:25]} Rxa3 {[%emt 0:00:06]} ({Weaker is} 31... Qxa3 32. Qd2 $17) 32. Bb1 {[%emt 0:00:44]} b5 {[%emt 0:05:19]} 33. Qd2 {[%emt 0:00:33]} Qd4 {[%emt 0:01:02]} 34. Qg5 {[%emt 0:00:46] [#]} (34. Rd1 {was the only defense.}) 34... Rxf3 $3 {[%emt 0:02:09][%mdl 512] Weighted Error Value: White=0.31/Black=0.08 (flawless)} 0-1

[Event "37th ECCC 2022"]
[Site "Mayrhofen"]
[Date "2022.10.03"]
[Round "1.6"]
[White "Gavrilescu, David"]
[Black "Petursson, Gudni"]
[Result "1-0"]
[ECO "C43"]
[WhiteElo "2523"]
[BlackElo "2037"]
[Annotator "TA"]
[PlyCount "81"]
[EventDate "2022.10.03"]
[EventType "team-tourn"]
[EventCountry "AUT"]
[SourceTitle "playchess.com"]
[Source "ChessBase"]
[SourceQuality "1"]
[TimeControl "40/5400+30:1800+30"]

{[%evp 14,81,4,0,0,0,0,0,0,0,20,23,17,27,18,11,22,20,17,14,38,41,73,10,16,21,18,10,14,14,14,7,7,0,0,7,174,169,296,280,274,270,422,416,370,375,525,508,519,497,503,466,453,8,8,4,8,8,1643,843,1609,1829,5081,4266,29990,29991,29992,1708,29947,5222]} 1. e4 {[%emt 0:00:09]} e5 {[%emt 0:00:41]} 2. Nf3 {[%emt 0:00:22]} Nf6 {[%emt 0:00:29]} 3. d4 {[%emt 0:01:02]} Nxe4 {[%emt 0:02:14]} 4. Bd3 {[%emt 0:00:45]} d5 {[%emt 0:02:08]} 5. Nxe5 {[%emt 0:00:16]} Nd7 {[%emt 0:07:24]} 6. Nc3 {[%emt 0:01:17]} Nxc3 {[%emt 0:02:54]} 7. bxc3 {[%emt 0:00:08]} Nxe5 {[%emt 0:02:29]} 8. dxe5 {[%emt 0:00:13]} Bc5 {[%emt 0:08:42] C43: Petroff Defence: 3 d4.} 9. O-O {[%emt 0:00:32]} O-O {[%emt 0:04:19] The main line 9...0-0 scores better than 9...Be6.} 10. Qh5 {[%emt 0:02:36][%csl Gd3][%cal Rh5h7]} g6 $1 {[%emt 0:02:06] The position is equal.} 11. Qh6 {[%emt 0:00:41]} Re8 {[%emt 0:07:07]} 12. Bg5 {[%emt 0:00:59]} Be7 {[%emt 0:00:34]} 13. Bxe7 {[%emt 0:05:37]} Qxe7 {[%emt 0:00:22]} 14. f4 {[%emt 0:09:11]} Qf8 {[%emt 0:20:30]} 15. Qh4 {[%emt 0:03:52]} Qe7 {[%emt 0:01:43]} 16. Qg3 {[%emt 0:03:26]} Bd7 {[%emt 0:03:55]} 17. Rae1 {[%emt 0:05:55] [#]} f5 $146 {[%emt 0:09:15] [#]} ({Predecessor:} 17... Kh8 18. h3 f5 19. exf6 Qxf6 20. Rxe8+ Rxe8 21. f5 Bxf5 22. Qxc7 {½-½ (42) Asadli,V (2572)-Mamedov,N (2609) Nakhchivan 2021}) 18. Re3 {[%emt 0:18:21]} (18. exf6 $1 $16 Qxf6 19. Rb1) 18... Be6 $11 {[%emt 0:01:17]} 19. h4 {[%emt 0:04:21][%cal Bh2h4,Bh4h5][%mdl 32]} Rad8 {[%emt 0:01:39]} 20. h5 {[%emt 0:02:23]} Kf7 {[%emt 0:03:07]} 21. Qf2 {[%emt 0:05:03]} Rg8 {[%emt 0:00:21]} 22. Rg3 {[%emt 0:00:57]} b6 {[%emt 0:00:44]} 23. Rg5 {[%emt 0:05:05]} Qc5 {[%emt 0:01:10]} 24. g4 {[%emt 0:02:51]} Qxf2+ $2 {[%emt 0:00:13]} (24... Qxc3 $2 25. hxg6+ hxg6 26. Qh4 $18 (26. gxf5 gxf5 27. Kg2 Qb4 $15)) (24... Rdf8 $11 {and Black is okay.}) 25. Kxf2 $18 {[%emt 0:00:11]} fxg4 {[%emt 0:02:41]} (25... c5 $142 26. Rh1 (26. gxf5 gxf5 27. Rfg1 Rxg5 $14) 26... Rg7 27. hxg6+ (27. gxf5 gxf5 28. Rxg7+ Kxg7 $14) 27... hxg6) 26. hxg6+ {[%emt 0:01:09]} hxg6 {[%emt 0:00:09]} 27. Rh1 {[%emt 0:00:32]} Rg7 {[%emt 0:06:21] [#] Prevents Rh7.} (27... g3+ $142 28. Rxg3 Rd7) 28. Bxg6+ $1 {[%emt 0:02:14][%mdl 512]} Ke7 {[%emt 0:00:31] [#]} 29. Rh7 $1 {[%emt 0:02:17]} Rdg8 {[%emt 0:00:34]} 30. Rgh5 {[%emt 0:01:25]} g3+ {[%emt 0:02:27]} 31. Kg2 {[%emt 0:00:10]} Rxh7 {[%emt 0:03:17]} 32. Rxh7+ {[%emt 0:03:06][%mdl 4096] Endgame KRB-KRB} ({Less strong is} 32. Bxh7 Rg4 $16) 32... Kd8 {[%emt 0:00:16]} 33. Bf7 {[%emt 0:01:46]} ({White should play} 33. f5 $18) 33... Bxf7 $11 {[%emt 0:00:22]} 34. Rxf7 {[%emt 0:00:02] And now e6 would win. KR-KR} Rg4 {[%emt 0:00:39]} 35. e6 {[%emt 0:00:34]} c5 $2 {[%emt 0:00:22][%mdl 8192]} (35... Ke8 $11) 36. f5 {[%emt 0:00:28][%cal Bf4f5,Bf5f6][%mdl 32] Strongly threatening f6.} Re4 {[%emt 0:00:18]} 37. Kxg3 {[%emt 0:00:05]} Re3+ {[%emt 0:00:24]} 38. Kf4 {[%emt 0:00:10]} Rxc3 {[%emt 0:00:26]} 39. f6 {[%emt 0:00:07]} Rxc2 {[%emt 0:00:15]} 40. Rf8+ {[%emt 0:00:18]} Kc7 {[%emt 0:00:05]} 41. e7 {[%emt 0:30:03] Weighted Error Value: White=0.25 (precise) /Black=0.40} 1-0